bitfinex-derivatives/quotes_SOLF0:USTF0_20250923
["timestamp","ask_amount","ask_price","bid_price","bid_amount"]
[1758620757651,3.34908437,218.96,218.9,6.07725286]
[1758620757846,7.58,218.97,218.9,6.07725286]
[1758620758254,7.58,218.97,218.91,4.1086]
[1758620758547,7.58,218.97,218.91,8.2786]
[1758620758745,7.58,218.97,218.93,10.18545286]
[1758620758945,7.58,218.97,218.93,6.01545286]
[1758620759255,7.58,219.01,218.94,4.17]
[1758620759554,3.35074599,219.0,218.94,4.17]
[1758620759747,10.93074599,218.99,218.94,4.17]
[1758620759951,3.35074599,218.98,218.95,8.2779]
[1758620760157,7.58,218.99,218.96,4.17]
[1758620760548,1.90725286,219.04,218.96,4.17]
[1758620760754,10.41320166,219.03,218.96,4.17]
[1758620760956,3.35320166,219.02,218.96,4.17]
[1758620761152,7.06,219.0,218.96,4.17]
[1758620761359,3.35320166,218.99,218.96,4.17]
[1758620761652,7.06,219.0,218.96,4.17]
[1758620762157,7.06,219.0,218.96,6.07725286]
[1758620762353,7.08884492,219.0,218.96,6.07725286]
[1758620762756,7.08884492,219.0,218.96,6.10658145]
[1758620763058,7.08884492,219.0,218.97,4.17]
[1758620765454,0.02884492,219.0,218.98,4.1073]
[1758620765763,0.02884492,219.0,218.99,6.07725286]
[1758620767260,0.02884492,219.0,218.99,4.17]
[1758620767461,7.06,219.1,219.02,4.1065]
[1758620767658,3.35532312,219.09,219.03,1.90725286]
[1758620767962,7.06,219.07,219.03,1.90725286]
[1758620768761,7.06,219.07,219.03,1.93745082]
[1758620768963,7.06,219.07,219.03,6.10745082]
[1758620770663,7.06,219.07,219.03,4.20019796]
[1758620770862,7.06,219.07,219.04,4.17]
[1758620771864,7.06,219.07,219.03,0.03019796]
[1758620772065,4.57680433,219.15,219.03,0.03019796]
[1758620772266,10.61188656,219.14,219.03,0.03019796]
[1758620772469,7.26,219.12,219.03,0.03019796]
[1758620772771,7.26,219.1,219.03,0.03019796]
[1758620773066,7.26,219.1,219.03,4.13659796]
[1758620774975,7.26,219.1,219.03,0.03019796]
[1758620775272,7.26,219.1,219.03,4.20019796]
[1758620775967,7.26,219.14,219.05,4.1058]
[1758620776168,7.26,219.12,219.05,4.1058]
[1758620776367,3.3302239,219.11,219.05,4.1058]
[1758620776574,7.26,219.12,219.05,4.1058]
[1758620776774,7.26,219.1,219.06,0.03491737]
[1758620776967,7.26,219.14,219.06,0.03491737]
[1758620777168,7.26,219.12,219.06,0.03491737]
[1758620777371,3.32988349,219.11,219.06,0.03491737]
[1758620777569,7.26,219.14,219.06,0.03491737]
[1758620777768,7.26,219.12,219.06,0.03491737]
[1758620778073,7.26,219.1,219.06,0.03491737]
[1758620778375,7.26,219.14,219.06,0.03491737]
[1758620778581,7.26,219.12,219.06,0.03491737]
[1758620778770,2.97913608,219.07,218.95,4.17]
[1758620778969,7.26,219.05,218.95,4.17]
[1758620779169,7.26,219.05,218.97,4.1075]
[1758620779772,7.26,219.05,218.95,4.17]
[1758620779973,7.26,219.03,218.95,4.17]
[1758620781776,7.26,219.03,218.92,4.1083]
[1758620783071,7.26,219.03,218.92,8.2783]
[1758620783980,7.26,219.03,218.94,4.108]
[1758620784176,0.03228839,219.0,218.95,4.17]
[1758620785874,0.03228839,219.0,218.94,4.17]
[1758620787072,7.29228839,219.0,218.94,4.17]
[1758620788886,7.29228839,219.0,218.95,4.1079]
[1758620789087,0.03228839,219.0,218.96,4.17]
[1758620789286,0.03228839,219.0,218.95,4.1079]
[1758620789592,0.03228839,219.0,218.96,4.17]
[1758620789791,0.03228839,219.0,218.95,4.1079]
[1758620790091,0.03228839,219.0,218.92,2.97913608]
[1758620790092,0.03228839,219.0,218.94,4.17]
[1758620794383,7.49,218.99,218.89,4.16]
[1758620794585,3.34126026,218.98,218.89,4.16]
[1758620796485,7.49,218.96,218.85,11.24873608]
[1758620796791,7.49,218.99,218.85,11.24873608]
[1758620796991,3.34234148,218.98,218.85,11.24873608]
[1758620797189,7.49,218.96,218.85,11.24873608]
[1758620798092,4.1074,218.98,218.85,11.24873608]
[1758620798297,7.49,218.96,218.85,11.24873608]
[1758620798497,3.34345061,218.95,218.85,11.24873608]
[1758620798898,3.34345061,218.95,218.85,8.2696]
[1758620799200,7.49,218.94,218.85,8.2696]
[1758620801102,7.49,218.94,218.85,4.16]
[1758620801500,3.34431326,218.93,218.82,345.08]
[1758620801707,10.83431326,218.92,218.81,4.16]
[1758620802004,3.34431326,218.91,218.81,4.16]
[1758620802203,7.49,218.92,218.81,4.16]
[1758620802406,3.34327299,218.91,218.81,4.16]
[1758620802608,7.49,218.92,218.81,8.2705]
[1758620802802,7.49,218.9,218.81,8.2705]
[1758620803998,7.49,218.9,218.81,4.16]
[1758620805309,11.5989,218.9,218.78,8.271]
[1758620805604,7.49,218.88,218.78,4.16]
[1758620806106,7.49,218.86,218.78,4.16]
[1758620808813,10.46913608,218.86,218.75,4.16]
[1758620809813,14.57883608,218.86,218.75,4.16]
[1758620811816,11.5997,218.86,218.75,4.16]
[1758620812009,14.57883608,218.86,218.75,4.16]
[1758620813113,0.79561043,218.85,218.75,4.16]
[1758620813313,7.49,218.84,218.75,4.16]
[1758620815711,11.6001,218.84,218.71,4.16]
[1758620817718,4.1103,218.82,218.71,4.16]
[1758620818015,7.49,218.81,218.71,4.16]
[1758620818420,7.49,218.79,218.71,4.16]
[1758620821317,0.03477053,218.77,218.71,4.16]
[1758620823721,7.68477053,218.77,218.71,4.16]
[1758620827527,0.03477053,218.77,218.71,4.16]
[1758620830330,7.65,218.76,218.68,4.113]
[1758620830533,7.65,218.76,218.69,8.2926]
[1758620830833,0.03477053,218.77,218.7,6.09250945]
[1758620831628,0.03477053,218.77,218.7,6.02490945]
[1758620831834,0.03477053,218.77,218.71,4.18]
[1758620832129,7.68477053,218.77,218.71,4.18]
[1758620835534,7.68477053,218.77,218.67,6.09250945]
[1758620836127,7.68477053,218.77,218.69,1.91250945]
[1758620836538,7.68477053,218.77,218.69,4.1126]
[1758620836835,9.59727998,218.77,218.68,4.18]
[1758620837927,9.59727998,218.77,218.68,8.293]
[1758620839129,1.91250945,218.75,218.68,4.18]
[1758620839336,7.64,218.74,218.68,4.18]
[1758620840731,7.64,218.74,218.66,1.91250945]
[1758620841034,7.64,218.72,218.64,6.10250945]
[1758620841225,7.64,218.72,218.62,4.1139]
[1758620841429,7.64,218.7,218.62,4.1139]
[1758620841830,7.64,218.7,218.63,4.19]
[1758620844037,5.23536184,218.69,218.63,4.19]
[1758620844232,1.91250945,218.69,218.63,4.19]
[1758620845237,9.55250945,218.67,218.59,4.19]
[1758620846429,7.64,218.67,218.59,4.19]
[1758620846635,5.23616455,218.66,218.59,4.19]
[1758620846835,1.91250945,218.66,218.59,4.19]
[1758620851138,7.64,218.67,218.59,4.19]
[1758620851332,0.02979507,218.68,218.6,1.91250945]
[1758620851540,0.02979507,218.68,218.61,4.19]
[1758620851744,9.36250945,218.7,218.61,4.19]
[1758620852044,7.45,218.7,218.64,4.19]
[1758620852436,7.45,218.7,218.65,6.02600945]
[1758620852641,7.45,218.7,218.66,4.19]
[1758620852836,7.45,218.7,218.67,4.19]
[1758620853036,7.48074561,218.7,218.67,4.19]
[1758620853441,0.03074561,218.7,218.65,6.02600945]
[1758620853638,0.03074561,218.7,218.66,4.19]
[1758620853838,0.03074561,218.7,218.65,6.02600945]
[1758620855144,0.03074561,218.7,218.66,4.19]
[1758620855535,0.03074561,218.7,218.65,6.02600945]
[1758620856145,0.03074561,218.7,218.66,4.19]
[1758620856742,0.03074561,218.7,218.65,6.02600945]
[1758620857044,7.45,218.67,218.59,4.19]
[1758620857542,7.45,218.67,218.61,1.91250945]
[1758620859738,9.36250945,218.73,218.62,4.19]
[1758620860044,3.32605556,218.72,218.64,1.91250945]
[1758620860244,3.32605556,218.71,218.64,1.91250945]
[1758620860445,3.32605556,218.7,218.64,1.91250945]
[1758620860640,9.36250945,218.73,218.65,4.19]
[1758620860838,3.32623477,218.72,218.68,4.19]
[1758620861041,7.45,218.73,218.67,1.91250945]
[1758620861238,7.45,218.73,218.67,6.10250945]
[1758620861440,7.45,218.73,218.67,10.21560945]
[1758620862444,7.45,218.73,218.67,6.10250945]
[1758620864045,7.45,218.76,218.7,1.91250945]
[1758620864247,7.45,218.79,218.7,1.91250945]
[1758620864444,3.32093233,218.78,218.7,1.91250945]
[1758620864745,3.32093233,218.77,218.7,1.91250945]
[1758620864947,3.32093233,218.76,218.7,1.91250945]
[1758620865148,7.45,218.79,218.7,1.91250945]
[1758620865349,7.45,218.75,218.71,4.19]
[1758620866046,7.45,218.79,218.71,4.19]
[1758620866247,7.45,218.77,218.71,4.19]
[1758620866449,3.32112835,218.76,218.71,4.19]
[1758620866649,7.45,218.78,218.71,4.19]
[1758620866849,3.32164028,218.77,218.71,4.19]
[1758620867151,7.45,218.75,218.67,6.10250945]
[1758620868648,7.45,218.73,218.64,8.3037]
[1758620868845,7.45,218.71,218.64,8.3037]
[1758620871749,7.45,218.71,218.64,10.21620945]
[1758620873851,7.45,218.71,218.64,8.3037]
[1758620874257,3.32494008,218.7,218.64,8.3037]
[1758620874456,7.45,218.71,218.64,8.3037]
[1758620874757,3.32521335,218.7,218.64,8.3037]
[1758620874953,7.45,218.71,218.64,8.3037]
[1758620875152,3.32521269,218.7,218.64,8.3037]
[1758620875353,7.45,218.71,218.64,8.3037]
[1758620875553,3.3258722,218.7,218.64,8.3037]
[1758620875753,7.45,218.71,218.64,8.3037]
[1758620875955,3.32592719,218.7,218.64,8.3037]
[1758620876154,7.45,218.71,218.64,8.3037]
[1758620876348,3.32686231,218.7,218.64,8.3037]
[1758620876554,7.45,218.71,218.64,8.3037]
[1758620876754,3.32759674,218.7,218.64,8.3037]
[1758620877055,7.45,218.71,218.64,8.3037]
[1758620877259,3.32771992,218.7,218.64,8.3037]
[1758620877559,7.45,218.71,218.64,8.3037]
[1758620877759,3.32847797,218.7,218.64,8.3037]
[1758620878059,7.45,218.71,218.64,8.3037]
[1758620878259,3.32847797,218.7,218.64,8.3037]
[1758620878462,7.45,218.71,218.64,8.3037]
[1758620878752,10.77913116,218.7,218.66,4.19]
[1758620878958,7.45,218.7,218.66,4.19]
[1758620880159,7.45,218.73,218.66,4.19]
[1758620880360,3.33060027,218.72,218.66,4.19]
[1758620880555,10.40060027,218.71,218.65,1.91250945]
[1758620880760,10.40060027,218.7,218.66,4.19]
[1758620880957,7.07,218.7,218.66,4.19]
[1758620881159,3.33266678,218.69,218.66,4.19]
[1758620881460,7.07,218.7,218.66,4.19]
[1758620881654,3.33270242,218.69,218.66,4.19]
[1758620881851,7.07,218.7,218.66,4.19]
[1758620882050,3.33270242,218.69,218.66,4.19]
[1758620882256,7.07,218.7,218.66,4.19]
[1758620882459,3.33375353,218.69,218.66,4.19]
[1758620882657,7.07,218.7,218.66,4.19]
[1758620882956,3.33375353,218.69,218.66,4.19]
[1758620883161,7.07,218.7,218.66,4.19]
[1758620883363,3.33480656,218.69,218.66,4.19]
[1758620883561,7.07,218.7,218.66,4.19]
[1758620883762,3.33480656,218.69,218.66,4.19]
[1758620884062,7.07,218.7,218.66,4.19]
[1758620884265,3.33480657,218.69,218.66,4.19]
[1758620884457,7.07,218.7,218.66,4.19]
[1758620884656,3.33512014,218.69,218.66,4.19]
[1758620884856,7.07,218.7,218.66,4.19]
[1758620885052,3.3349835,218.69,218.66,4.19]
[1758620885261,3.33606044,218.68,218.66,4.19]
[1758620885560,7.07,218.7,218.66,4.19]
[1758620885763,3.33606044,218.69,218.66,4.19]
[1758620885963,7.07,218.7,218.66,4.19]
[1758620885964,3.33606044,218.68,218.66,4.19]
[1758620886156,7.07,218.7,218.66,4.19]
[1758620886357,3.33638302,218.69,218.66,4.19]
[1758620886657,3.33638302,218.68,218.66,4.19]
[1758620886858,7.07,218.7,218.66,4.19]
[1758620887059,3.33690337,218.69,218.66,4.19]
[1758620887261,3.33690337,218.68,218.66,4.19]
[1758620887455,4.112,218.74,218.65,6.02600945]
[1758620887657,10.4067875,218.73,218.66,4.19]
[1758620887862,3.3367875,218.72,218.66,4.19]
[1758620888159,7.07,218.7,218.66,4.19]
[1758620888363,3.3367875,218.69,218.66,4.19]
[1758620893162,10.4067875,218.69,218.66,4.19]
[1758620893467,3.3367875,218.68,218.66,4.19]
[1758620895172,7.07,218.76,218.67,4.19]
[1758620895367,3.33765101,218.75,218.67,4.19]
[1758620895565,3.33765101,218.74,218.67,4.19]
[1758620895867,3.33765101,218.73,218.67,4.19]
[1758620896067,3.33765101,218.72,218.66,2.98944764]
[1758620896268,3.33765101,218.71,218.69,4.19]
[1758620896466,7.07,218.76,218.67,4.19]
[1758620896663,3.33802325,218.75,218.71,4.1122]
[1758620896863,3.33802325,218.74,218.71,4.1122]
[1758620897075,3.33802325,218.73,218.72,4.19]
[1758620898073,7.75,218.81,218.72,4.19]
[1758620898373,7.75,218.79,218.72,4.19]
[1758620898576,3.3031779,218.78,218.72,4.19]
[1758620898775,7.75,218.76,218.73,4.18]
[1758620898971,3.3031779,218.75,218.73,4.18]
[1758620899174,3.3031779,218.74,218.68,4.18]
[1758620899372,7.75,218.72,218.68,4.18]
[1758620900974,7.75,218.72,218.67,4.18]
[1758620901174,7.75,218.72,218.66,4.1132]
[1758620901879,7.75,218.72,218.66,8.2932]
[1758620903176,7.75,218.72,218.66,4.18]
[1758620903379,7.75,218.7,218.66,4.18]
[1758620903580,7.75,218.75,218.66,4.18]
[1758620903776,7.75,218.73,218.66,4.18]
[1758620904079,7.75,218.71,218.62,117.72]
[1758620904275,3.30018332,218.7,218.63,4.18]
[1758620904480,3.30018332,218.69,218.63,4.18]
[1758620904684,7.75,218.71,218.63,4.18]
[1758620904884,3.30065995,218.7,218.63,4.18]
[1758620905088,3.30065995,218.69,218.63,4.18]
[1758620905286,7.75,218.71,218.63,4.18]
[1758620905487,7.75,218.69,218.63,4.18]
[1758620907188,7.75,218.74,218.63,4.18]
[1758620907387,3.29991545,218.73,218.64,4.1136]
[1758620907688,3.29991545,218.72,218.65,4.18]
[1758620907890,3.29991545,218.71,218.65,4.18]
[1758620908087,3.29991545,218.7,218.65,4.18]
[1758620908289,7.75,218.74,218.65,4.18]
[1758620908489,3.30033074,218.73,218.65,4.18]
[1758620908690,3.30033074,218.72,218.65,4.18]
[1758620908880,3.30033074,218.71,218.65,4.18]
[1758620909084,3.30033074,218.7,218.65,4.18]
[1758620909289,7.75,218.72,218.65,4.18]
[1758620909492,3.30074093,218.71,218.65,4.18]
[1758620909792,11.05074093,218.7,218.62,4.18]
[1758620909996,7.75,218.7,218.62,4.18]
[1758620910294,3.30051667,218.69,218.62,4.18]
[1758620910495,11.05051667,218.68,218.62,4.18]
[1758620910700,7.75,218.68,218.62,4.18]
[1758620911195,7.75,218.68,218.62,8.2939]
[1758620915796,7.75,218.68,218.62,4.18]
[1758620917499,7.75,218.68,218.59,4.19]
[1758620917687,7.75,218.66,218.59,4.19]
[1758620918592,7.75,218.71,218.59,4.19]
[1758620918798,3.301055,218.7,218.59,4.19]
[1758620918998,3.301055,218.69,218.59,4.19]
[1758620919194,3.301055,218.68,218.59,4.19]
[1758620919392,7.75,218.71,218.6,4.19]
[1758620919588,7.75,218.69,218.6,4.19]
[1758620919898,3.3006666,218.68,218.6,4.19]
[1758620920098,3.3006666,218.67,218.61,4.1141]
[1758620920298,7.75,218.69,218.61,4.1141]
[1758620920499,3.30038029,218.68,218.61,4.1141]
[1758620920803,3.30038029,218.67,218.61,4.1141]
[1758620920992,7.75,218.69,218.62,4.1139]
[1758620921195,3.30004197,218.68,218.6,4.19]
[1758620921395,7.75,218.69,218.6,4.19]
[1758620921594,3.29994091,218.68,218.6,4.19]
[1758620921898,7.75,218.69,218.6,4.19]
[1758620922203,3.29994091,218.68,218.6,4.19]
[1758620922398,7.75,218.69,218.61,4.1141]
[1758620922701,3.29991447,218.68,218.61,4.1141]
[1758620922999,7.75,218.69,218.6,4.19]
[1758620923203,7.75,218.67,218.6,4.19]
[1758620923797,7.75,218.66,218.62,4.1139]
[1758620923996,7.75,218.66,218.62,8.3039]
[1758620928805,7.75,218.66,218.62,4.1139]
[1758620929004,7.75,218.66,218.63,4.19]
[1758620929705,7.75,218.71,218.63,4.19]
[1758620929904,7.75,218.69,218.63,4.19]
[1758620930104,7.75,218.67,218.63,4.19]
[1758620930304,7.75,218.71,218.63,4.19]
[1758620930494,7.75,218.69,218.63,4.19]
[1758620930693,3.31491896,218.68,218.55,113.46]
[1758620930899,3.31491896,218.67,218.55,113.46]
[1758620931205,3.31491896,218.66,218.55,113.46]
[1758620931401,2.98944764,218.68,218.55,113.46]
[1758620931600,3.31447496,218.67,218.55,113.46]
[1758620931906,11.06447496,218.66,218.57,4.1149]
[1758620932094,7.75,218.66,218.57,4.1149]
[1758620933907,7.75,218.67,218.59,4.1146]
[1758620934208,7.75,218.65,218.59,4.1146]
[1758620934802,7.75,218.65,218.6,4.1143]
[1758620935003,10.73944764,218.7,218.6,4.1143]
[1758620935204,7.75,218.68,218.6,4.1143]
[1758620935404,7.75,218.66,218.6,4.1143]
[1758620936706,7.75,218.64,218.6,4.1143]
[1758620936906,7.75,218.69,218.6,4.1143]
[1758620937106,7.75,218.67,218.6,4.1143]
[1758620937309,3.31449198,218.66,218.6,4.1143]
[1758620937504,7.75,218.64,218.58,4.1148]
[1758620939009,7.75,218.64,218.56,4.19]
[1758620939507,2.98944764,218.67,218.55,117.5753]
[1758620939707,7.75,218.65,218.55,117.5753]
[1758620940004,7.75,218.63,218.55,117.5753]
[1758620940207,2.98944764,218.67,218.55,117.5753]
[1758620940402,3.3130623,218.66,218.55,117.65]
[1758620940607,3.3130623,218.65,218.55,117.65]
[1758620940807,7.3,218.63,218.55,117.65]
[1758620941206,3.31321473,218.62,218.55,117.65]
[1758620941407,11.4139,218.63,218.55,117.65]
[1758620941610,2.98944764,218.59,218.48,4.19]
[1758620941910,7.3,218.57,218.48,4.19]
[1758620943321,7.3,218.55,218.48,4.19]
[1758620945105,7.3,218.55,218.48,8.3067]
[1758620946413,7.3,218.55,218.48,4.19]
[1758620947904,7.3,218.55,218.44,4.19]
[1758620948305,2.98944764,218.53,218.41,4.19]
[1758620948508,7.3,218.52,218.41,4.19]
[1758620949106,7.3,218.52,218.41,8.3079]
[1758620949312,7.3,218.49,218.37,18.1807762]
[1758620949518,2.98944764,218.5,218.37,18.1807762]
[1758620949713,2.98944764,218.5,218.37,4.19]
[1758620949914,7.3,218.49,218.37,4.19]
[1758620951607,7.3,218.49,218.37,8.3088]
[1758620952215,2.98944764,218.46,218.37,4.19]
[1758620952512,1.91841328,218.43,218.37,4.19]
[1758620953615,7.47,218.45,218.37,4.19]
[1758620953822,9.38841328,218.45,218.38,4.1186]
[1758620954023,7.47,218.45,218.38,4.1186]
[1758620954322,9.38841328,218.45,218.38,4.1186]
[1758620954722,9.38841328,218.45,218.37,4.19]
[1758620956012,7.47,218.38,218.26,4.2]
[1758620956211,1.91841328,218.36,218.26,4.2]
[1758620956418,7.47,218.38,218.28,4.1204]
[1758620956725,1.91841328,218.36,218.29,4.2]
[1758620956917,7.47,218.38,218.29,4.2]
[1758620957110,1.91841328,218.37,218.29,4.2]
[1758620957315,7.47,218.33,218.25,4.2]
[1758620957512,1.91841328,218.36,218.25,4.2]
[1758620957719,1.91841328,218.36,218.26,1.91841328]
[1758620957924,1.91841328,218.36,218.29,4.2]
[1758620958312,1.91841328,218.35,218.29,4.2]
[1758620958513,9.38841328,218.38,218.31,4.2]
[1758620959226,7.47,218.34,218.27,4.2]
[1758620959521,7.47,218.31,218.27,4.2]
[1758620959724,9.38841328,218.32,218.26,112.06]
[1758620960115,7.47,218.32,218.26,112.06]
[1758620960922,7.47,218.32,218.26,116.26]
[1758620961119,4.1183,218.4,218.26,116.26]
[1758620961329,1.91841328,218.34,218.26,116.26]
[1758620961923,1.91841328,218.37,218.3,4.2]
[1758620962228,7.47,218.39,218.3,4.2]
[1758620962623,7.47,218.39,218.31,4.1199]
[1758620962825,9.38841328,218.39,218.31,4.1199]
[1758620963024,9.38841328,218.39,218.32,4.2]
[1758620963526,7.47,218.36,218.28,4.1204]
[1758620964525,7.47,218.36,218.27,4.2]
[1758620964721,1.91841328,218.35,218.27,4.2]
[1758620965524,7.47,218.36,218.27,4.2]
[1758620965726,7.47,218.36,218.27,6.11841328]
[1758620967430,4.1182,218.41,218.31,6.11841328]
[1758620967431,1.91841328,218.41,218.31,6.11841328]
[1758620967631,7.47,218.4,218.31,6.11841328]
[1758620968931,7.47,218.4,218.31,10.23831328]
[1758620969431,1.91841328,218.39,218.31,4.2]
[1758620970126,7.47,218.38,218.31,4.2]
[1758620970525,1.91841328,218.37,218.25,64.1054]
[1758620970733,7.61,218.34,218.25,1.91841328]
[1758620971030,64.0541,218.43,218.24,4.2]
[1758620971031,7.61,218.32,218.24,4.2]
[1758620971628,7.61,218.32,218.22,4.1216]
[1758620971828,7.61,218.32,218.23,1.91841328]
[1758620973635,7.61,218.32,218.22,1.91841328]
[1758620974431,7.61,218.32,218.23,4.1214]
[1758620974634,7.61,218.32,218.25,4.2]
[1758620975234,7.61,218.32,218.25,6.11841328]
[1758620978444,7.61,218.32,218.25,10.23931328]
[1758620981644,7.61,218.32,218.26,1.91841328]
[1758620986044,1.91841328,218.39,218.29,4.2]
[1758620986250,7.61,218.38,218.3,1.91841328]
[1758620987149,7.61,218.38,218.29,4.2]
[1758620987351,7.61,218.38,218.3,1.91841328]
[1758620988649,7.61,218.38,218.31,4.1199]
[1758620989553,7.61,218.38,218.32,1.91841328]
[1758620992151,7.61,218.38,218.32,10.23801328]
[1758620993151,7.61,218.42,218.34,1.91841328]
[1758620993353,7.61,218.4,218.34,1.91841328]
[1758620993652,3.31307509,218.39,218.34,1.91841328]
[1758620993852,7.61,218.37,218.34,1.91841328]
[1758620995443,7.61,218.37,218.34,6.11841328]
[1758620995753,7.61,218.44,218.36,6.11841328]
[1758620995951,84.28372494,218.45,218.38,6.11841328]
[1758620995952,7.61,218.42,218.38,6.11841328]
[1758620996546,7.61,218.42,218.38,4.2]
[1758620996744,84.28372494,218.45,218.38,4.2]
[1758620996949,10.8985639,218.44,218.38,4.2]
[1758620997150,3.2885639,218.43,218.38,4.2]
[1758620997347,7.61,218.41,218.38,4.2]
[1758620998149,91.89372494,218.45,218.37,6.11841328]
[1758620998347,3.28856461,218.44,218.37,6.11841328]
[1758620998548,3.28856461,218.43,218.37,6.11841328]
[1758620998749,7.61,218.45,218.39,6.11841328]
[1758620999143,7.61,218.45,218.42,1.91841328]
[1758620999551,7.61,218.51,218.42,6.11841328]
[1758620999854,3.28954263,218.5,218.44,1.91841328]
[1758621000047,7.61,218.51,218.44,1.91841328]
[1758621000248,3.28954004,218.5,218.44,1.91841328]
[1758621000445,7.61,218.48,218.44,1.91841328]
[1758621000951,7.61,218.48,218.44,6.11841328]
[1758621001146,7.69,218.53,218.44,6.11841328]
[1758621001355,7.69,218.54,218.49,4.2]
[1758621001550,7.69,218.53,218.49,4.2]
[1758621001854,71.5951406,218.65,218.44,64.0498]
[1758621001855,7.69,218.58,218.5,6.11841328]
[1758621002451,7.69,218.58,218.5,4.2]
[1758621002645,7.69,218.58,218.5,6.11841328]
[1758621003647,7.69,218.58,218.5,1.91841328]
[1758621003953,25.9,218.64,218.47,1.91841328]
[1758621003954,7.69,218.55,218.47,1.91841328]
[1758621004853,7.69,218.55,218.38,77.7773]
[1758621004854,1.91841328,218.52,218.38,4.2]
[1758621005048,7.69,218.51,218.42,1.91841328]
[1758621007458,7.69,218.51,218.44,1.91841328]
[1758621008464,7.69,218.51,218.41,8.318]
[1758621008761,1.91841328,218.58,218.49,1.91841328]
[1758621008960,7.69,218.57,218.49,1.91841328]
[1758621009264,7.69,218.57,218.52,1.91841328]
[1758621009763,7.69,218.57,218.53,4.2]
[1758621010164,1.91841328,218.63,218.53,1.91841328]
[1758621010363,10.9634863,218.62,218.53,1.91841328]
[1758621010564,7.33,218.6,218.51,1.91841328]
[1758621010765,7.33,218.6,218.54,1.91841328]
[1758621011467,7.33,218.6,218.52,4.19]
[1758621011766,7.33,218.6,218.53,1.91841328]
[1758621013668,7.33,218.6,218.56,1.91841328]
[1758621013872,7.33,218.6,218.56,6.10841328]
[1758621014371,7.33,218.65,218.59,1.91841328]
[1758621014570,7.33,218.65,218.58,7.180142]
[1758621016766,7.33,218.65,218.59,4.1146]
[1758621017461,7.33,218.72,218.59,4.1146]
[1758621018665,7.33,218.72,218.58,7.180142]
[1758621018868,7.33,218.7,218.56,4.1151]
[1758621019071,7.33,218.7,218.54,4.19]
[1758621019267,7.33,218.68,218.55,4.1154]
[1758621019964,10.320142,218.68,218.55,4.1154]
[1758621021275,2.990142,218.65,218.54,4.19]
[1758621021570,7.33,218.64,218.54,4.19]
[1758621022469,7.33,218.64,218.54,8.3056]
[1758621022772,7.33,218.64,218.49,4.19]
[1758621023774,4.1139,218.63,218.51,4.116]
[1758621024075,7.33,218.62,218.51,4.116]
[1758621025767,7.33,218.62,218.53,4.19]
[1758621027375,7.33,218.62,218.53,8.3058]
[1758621028578,2.990142,218.59,218.46,4.19]
[1758621028781,7.33,218.58,218.46,4.19]
[1758621028976,7.33,218.58,218.47,4.1168]
[1758621029170,7.33,218.58,218.46,4.19]
[1758621029381,7.33,218.58,218.45,64.0468]
[1758621029382,7.33,218.58,218.5,4.19]
[1758621029682,7.33,218.65,218.5,4.19]